[Event "Titled Tuesday Blitz June 27 Late 2023"]
[White "MKlose11"]
[Black "Vega Gutierrez, Sabrina"]
[BlackFideId "2219026"]
[WhiteElo "2588"]
[BlackElo "2407"]
[Result "1-0"]
[Round "6"]
[TimeControl "180+2"]
[Date "2023.06.27"]
[WhiteClock "0:00:10"]
[BlackClock "0:00:00"]
[Board "95"]

1. e4 {[%clk 0:03:00]}  c5 {[%clk 0:02:59]} 2. Nc3 {[%clk 0:03:00]}  Nc6 {[%clk 0:02:59]} 3. d3 {[%clk 0:02:58]}  g6 {[%clk 0:02:55]} 4. Be3 {[%clk 0:02:52]}  d6 {[%clk 0:02:55]} 5. Qd2 {[%clk 0:02:52]}  Bg7 {[%clk 0:02:55]} 6. g3 {[%clk 0:02:52]}  Nf6 {[%clk 0:02:43]} 7. h3 {[%clk 0:02:52]}  h5 {[%clk 0:02:42]} 8. Bg2 {[%clk 0:02:52]}  Rb8 {[%clk 0:02:37]} 9. Nge2 {[%clk 0:02:52]}  b5 {[%clk 0:02:35]} 10. O-O {[%clk 0:02:52]}  b4 {[%clk 0:02:33]} 11. Nd1 {[%clk 0:02:52]}  O-O {[%clk 0:02:32]} 12. f4 {[%clk 0:02:52]}  a5 {[%clk 0:02:31]} 13. e5 {[%clk 0:02:53]}  dxe5 {[%clk 0:02:15]} 14. Bxc6 {[%clk 0:02:52]}  Bxh3 {[%clk 0:02:15]} 15. Bg2 {[%clk 0:02:45]}  Bxg2 {[%clk 0:02:13]} 16. Kxg2 {[%clk 0:02:46]}  Ng4 {[%clk 0:02:09]} 17. f5 {[%clk 0:02:35]}  Qd7 {[%clk 0:01:38]} 18. Nf2 {[%clk 0:02:24]}  Nxe3+ {[%clk 0:00:52]} 19. Qxe3 {[%clk 0:02:25]}  Qxf5 {[%clk 0:00:53]} 20. Ne4 {[%clk 0:02:07]}  Qd7 {[%clk 0:00:49]} 21. Rad1 {[%clk 0:01:29]}  Rbc8 {[%clk 0:00:45]} 22. b3 {[%clk 0:01:18]}  Qc6 {[%clk 0:00:37]} 23. Kh2 {[%clk 0:01:12]}  Rc7 {[%clk 0:00:33]} 24. Nd2 {[%clk 0:01:11]}  a4 {[%clk 0:00:19]} 25. Nc4 {[%clk 0:01:11]}  f6 {[%clk 0:00:19]} 26. Qe4 {[%clk 0:01:05]}  Qxe4 {[%clk 0:00:15]} 27. dxe4 {[%clk 0:01:05]}  axb3 {[%clk 0:00:16]} 28. axb3 {[%clk 0:01:05]}  Ra8 {[%clk 0:00:17]} 29. Ra1 {[%clk 0:01:02]}  Rca7 {[%clk 0:00:17]} 30. Rxa7 {[%clk 0:01:01]}  Rxa7 {[%clk 0:00:18]} 31. Ng1 {[%clk 0:00:54]}  Ra2 {[%clk 0:00:17]} 32. Rf2 {[%clk 0:00:54]}  Bh6 {[%clk 0:00:17]} 33. Nf3 {[%clk 0:00:51]}  Kg7 {[%clk 0:00:10]} 34. Re2 {[%clk 0:00:51]}  Bc1 {[%clk 0:00:10]} 35. Ne1 {[%clk 0:00:49]}  g5 {[%clk 0:00:06]} 36. Nd3 {[%clk 0:00:49]}  Ba3 {[%clk 0:00:06]} 37. Nxc5 {[%clk 0:00:48]}  Kf7 {[%clk 0:00:06]} 38. Nd3 {[%clk 0:00:43]}  Ke8 {[%clk 0:00:06]} 39. Kg2 {[%clk 0:00:40]}  Kf7 {[%clk 0:00:06]} 40. Kf3 {[%clk 0:00:35]}  Kg6 {[%clk 0:00:06]} 41. Ke3 {[%clk 0:00:29]}  g4 {[%clk 0:00:06]} 42. Rh2 {[%clk 0:00:26]}  Kg5 {[%clk 0:00:07]} 43. Kd2 {[%clk 0:00:25]}  Ra1 {[%clk 0:00:06]} 44. Ne3 {[%clk 0:00:23]}  Rg1 {[%clk 0:00:06]} 45. Rg2 {[%clk 0:00:22]}  Rh1 {[%clk 0:00:04]} 46. Nf5 {[%clk 0:00:19]}  e6 {[%clk 0:00:04]} 47. Ng7 {[%clk 0:00:18]}  f5 {[%clk 0:00:01]} 48. Nxe6+ {[%clk 0:00:15]}  Kf6 {[%clk 0:00:02]} 49. Nec5 {[%clk 0:00:12]}  h4 {[%clk 0:00:02]} 50. gxh4 {[%clk 0:00:11]}  Rxh4 {[%clk 0:00:01]} 51. exf5 {[%clk 0:00:11]}  Kxf5 {[%clk 0:00:02]} 52. Rf2+ {[%clk 0:00:09]}  Kg5 {[%clk 0:00:02]} 53. Ne4+ {[%clk 0:00:10]}  Kg6 {[%clk 0:00:00]} 54. Nxe5+ {[%clk 0:00:10]} 1-0


[Site "https://www.chess.com"]

[Event "Titled Tuesday Blitz June 27 Late 2023"]
[White "lagarto93"]
[Black "Szyszylo, Rafal"]
[BlackFideId "1109626"]
[WhiteElo "2586"]
[BlackElo "2404"]
[Result "1-0"]
[Round "6"]
[TimeControl "180+2"]
[Date "2023.06.27"]
[WhiteClock "0:01:57"]
[BlackClock "0:00:21"]
[Board "96"]

1. e4 {[%clk 0:03:00]}  d6 {[%clk 0:02:49]} 2. d4 {[%clk 0:03:00]}  g6 {[%clk 0:02:49]} 3. Nc3 {[%clk 0:03:00]}  Nf6 {[%clk 0:02:49]} 4. Be3 {[%clk 0:03:01]}  c6 {[%clk 0:02:50]} 5. f3 {[%clk 0:03:01]}  b5 {[%clk 0:02:50]} 6. Qd2 {[%clk 0:03:01]}  Nbd7 {[%clk 0:02:50]} 7. a4 {[%clk 0:03:01]}  b4 {[%clk 0:02:50]} 8. Nd1 {[%clk 0:03:02]}  a5 {[%clk 0:02:50]} 9. c3 {[%clk 0:03:01]}  c5 {[%clk 0:02:51]} 10. h4 {[%clk 0:02:57]}  h5 {[%clk 0:02:45]} 11. Nh3 {[%clk 0:02:57]}  Bg7 {[%clk 0:02:42]} 12. Ng5 {[%clk 0:02:57]}  O-O {[%clk 0:02:41]} 13. Nf2 {[%clk 0:02:54]}  bxc3 {[%clk 0:02:40]} 14. bxc3 {[%clk 0:02:53]}  cxd4 {[%clk 0:02:40]} 15. cxd4 {[%clk 0:02:52]}  Qb6 {[%clk 0:02:29]} 16. Bd3 {[%clk 0:02:44]}  Ba6 {[%clk 0:02:15]} 17. Rb1 {[%clk 0:02:37]}  Qc7 {[%clk 0:02:15]} 18. O-O {[%clk 0:02:35]}  Bxd3 {[%clk 0:02:14]} 19. Nxd3 {[%clk 0:02:33]}  Rfb8 {[%clk 0:02:14]} 20. Rxb8+ {[%clk 0:02:27]}  Qxb8 {[%clk 0:02:01]} 21. Rc1 {[%clk 0:02:26]}  Qb3 {[%clk 0:01:55]} 22. Qc2 {[%clk 0:02:11]}  Qa3 {[%clk 0:01:55]} 23. Rb1 {[%clk 0:02:07]}  e6 {[%clk 0:01:33]} 24. Bc1 {[%clk 0:02:03]}  Rc8 {[%clk 0:00:24]} 25. Qxc8+ {[%clk 0:01:57]}  Nf8 {[%clk 0:00:21]} 26. Bxa3 {[%clk 0:01:57]} 1-0


[Site "https://www.chess.com"]

[Event "Titled Tuesday Blitz June 27 Late 2023"]
[White "Lowinger, Daniel"]
[Black "Palencia Morales, Wilson Guillermo"]
[WhiteFideId "2005557"]
[BlackFideId "4401859"]
[WhiteElo "2393"]
[BlackElo "2556"]
[Result "0-1"]
[Round "6"]
[TimeControl "180+2"]
[Date "2023.06.27"]
[WhiteClock "0:00:00"]
[BlackClock "0:01:24"]
[Board "97"]

1. e4 {[%clk 0:03:00]}  c5 {[%clk 0:02:59]} 2. Nf3 {[%clk 0:03:01]}  d6 {[%clk 0:02:59]} 3. d4 {[%clk 0:03:01]}  cxd4 {[%clk 0:02:59]} 4. Nxd4 {[%clk 0:03:02]}  Nf6 {[%clk 0:02:59]} 5. Nc3 {[%clk 0:03:02]}  g6 {[%clk 0:03:00]} 6. Be3 {[%clk 0:03:01]}  Bg7 {[%clk 0:03:01]} 7. f3 {[%clk 0:03:02]}  O-O {[%clk 0:03:01]} 8. Qd2 {[%clk 0:03:02]}  Nc6 {[%clk 0:03:00]} 9. O-O-O {[%clk 0:03:03]}  Nxd4 {[%clk 0:03:00]} 10. Bxd4 {[%clk 0:03:03]}  Be6 {[%clk 0:03:01]} 11. h4 {[%clk 0:02:52]}  Qa5 {[%clk 0:03:00]} 12. a3 {[%clk 0:02:47]}  Rfc8 {[%clk 0:02:59]} 13. Qg5 {[%clk 0:02:44]}  b5 {[%clk 0:02:55]} 14. h5 {[%clk 0:02:24]}  h6 {[%clk 0:02:53]} 15. Qxb5 {[%clk 0:02:20]}  Qxb5 {[%clk 0:02:46]} 16. Bxb5 {[%clk 0:02:18]}  Nxh5 {[%clk 0:02:43]} 17. Bxg7 {[%clk 0:01:54]}  Kxg7 {[%clk 0:02:41]} 18. Ba6 {[%clk 0:01:45]}  Rc5 {[%clk 0:02:38]} 19. Rd4 {[%clk 0:01:28]}  Nf4 {[%clk 0:02:31]} 20. Ra4 {[%clk 0:01:20]}  Nxg2 {[%clk 0:02:20]} 21. Bb7 {[%clk 0:01:02]}  Rb8 {[%clk 0:02:19]} 22. Bd5 {[%clk 0:01:03]}  a5 {[%clk 0:02:11]} 23. Rd1 {[%clk 0:00:31]}  Nf4 {[%clk 0:02:09]} 24. Bxe6 {[%clk 0:00:22]}  fxe6 {[%clk 0:02:05]} 25. Rd2 {[%clk 0:00:15]}  e5 {[%clk 0:01:59]} 26. Nd1 {[%clk 0:00:15]}  h5 {[%clk 0:01:48]} 27. Ne3 {[%clk 0:00:14]}  h4 {[%clk 0:01:45]} 28. Rh2 {[%clk 0:00:12]}  h3 {[%clk 0:01:40]} 29. Nc4 {[%clk 0:00:04]}  Rh8 {[%clk 0:01:24]} 30. b3 {[%clk 0:00:00]}  Ne6 {[%clk 0:01:24]} 0-1


[Site "https://www.chess.com"]

[Event "Titled Tuesday Blitz June 27 Late 2023"]
[White "Bilan, Danila"]
[Black "BenchGM"]
[WhiteFideId "24161918"]
[WhiteElo "2511"]
[BlackElo "2376"]
[Result "0-1"]
[Round "6"]
[TimeControl "180+2"]
[Date "2023.06.27"]
[WhiteClock "0:00:02"]
[BlackClock "0:00:59"]
[Board "101"]

1. d4 {[%clk 0:03:00]}  Nf6 {[%clk 0:02:59]} 2. Nf3 {[%clk 0:03:01]}  d5 {[%clk 0:02:58]} 3. c4 {[%clk 0:03:00]}  e6 {[%clk 0:02:57]} 4. Nc3 {[%clk 0:02:59]}  dxc4 {[%clk 0:02:56]} 5. e3 {[%clk 0:02:59]}  a6 {[%clk 0:02:55]} 6. Bxc4 {[%clk 0:02:58]}  b5 {[%clk 0:02:56]} 7. Be2 {[%clk 0:02:59]}  Bb7 {[%clk 0:02:55]} 8. O-O {[%clk 0:02:58]}  Nbd7 {[%clk 0:02:48]} 9. a3 {[%clk 0:02:58]}  c5 {[%clk 0:02:40]} 10. dxc5 {[%clk 0:02:58]}  Bxc5 {[%clk 0:02:40]} 11. b4 {[%clk 0:02:59]}  Be7 {[%clk 0:02:27]} 12. Bb2 {[%clk 0:02:43]}  Rc8 {[%clk 0:02:26]} 13. Qb3 {[%clk 0:02:27]}  O-O {[%clk 0:02:23]} 14. a4 {[%clk 0:02:23]}  bxa4 {[%clk 0:02:17]} 15. Nxa4 {[%clk 0:02:10]}  Nd5 {[%clk 0:02:11]} 16. b5 {[%clk 0:01:38]}  axb5 {[%clk 0:02:00]} 17. Bxb5 {[%clk 0:01:27]}  Nc5 {[%clk 0:01:45]} 18. Nxc5 {[%clk 0:01:20]}  Bxc5 {[%clk 0:01:45]} 19. Ne5 {[%clk 0:01:04]}  Rc7 {[%clk 0:01:27]} 20. e4 {[%clk 0:00:47]}  Nf6 {[%clk 0:01:20]} 21. Rfd1 {[%clk 0:00:15]}  Qc8 {[%clk 0:01:20]} 22. Nd3 {[%clk 0:00:10]}  Bxe4 {[%clk 0:01:15]} 23. Nxc5 {[%clk 0:00:10]}  Rxc5 {[%clk 0:01:15]} 24. Bxf6 {[%clk 0:00:06]}  gxf6 {[%clk 0:01:14]} 25. Bd3 {[%clk 0:00:06]}  Qc6 {[%clk 0:01:03]} 26. Bxe4 {[%clk 0:00:05]}  Qxe4 {[%clk 0:01:03]} 27. Re1 {[%clk 0:00:04]}  Qc6 {[%clk 0:01:00]} 28. Qg3+ {[%clk 0:00:03]}  Rg5 {[%clk 0:01:00]} 29. Qf4 {[%clk 0:00:02]}  Qxg2# {[%clk 0:00:59]} 0-1


[Site "https://www.chess.com"]

[Event "Titled Tuesday Blitz June 27 Late 2023"]
[White "Cooklev, Steven"]
[Black "Graif, William"]
[WhiteFideId "2050552"]
[BlackFideId "2609835"]
[WhiteElo "2376"]
[BlackElo "2508"]
[Result "1-0"]
[Round "6"]
[TimeControl "180+2"]
[Date "2023.06.27"]
[WhiteClock "0:00:04"]
[BlackClock "0:00:00"]
[Board "102"]

1. e4 {[%clk 0:03:00]}  e5 {[%clk 0:02:53]} 2. Bc4 {[%clk 0:02:59]}  Bc5 {[%clk 0:02:51]} 3. Nc3 {[%clk 0:02:59]}  d6 {[%clk 0:02:45]} 4. d3 {[%clk 0:02:59]}  a6 {[%clk 0:02:44]} 5. f4 {[%clk 0:02:59]}  Nc6 {[%clk 0:02:39]} 6. Nf3 {[%clk 0:02:59]}  Bg4 {[%clk 0:02:34]} 7. Nd5 {[%clk 0:02:36]}  Nd4 {[%clk 0:02:01]} 8. h4 {[%clk 0:01:25]}  Nf6 {[%clk 0:01:22]} 9. c3 {[%clk 0:01:22]}  Nc6 {[%clk 0:01:00]} 10. b4 {[%clk 0:01:17]}  Ba7 {[%clk 0:00:59]} 11. f5 {[%clk 0:01:16]}  Nxd5 {[%clk 0:00:21]} 12. Bxd5 {[%clk 0:01:17]}  h5 {[%clk 0:00:21]} 13. Qb3 {[%clk 0:00:48]}  Qd7 {[%clk 0:00:21]} 14. Ng5 {[%clk 0:00:48]}  Nd8 {[%clk 0:00:17]} 15. a4 {[%clk 0:00:45]}  c6 {[%clk 0:00:17]} 16. Bc4 {[%clk 0:00:45]}  b5 {[%clk 0:00:15]} 17. axb5 {[%clk 0:00:20]}  axb5 {[%clk 0:00:15]} 18. Bxf7+ {[%clk 0:00:20]}  Nxf7 {[%clk 0:00:15]} 19. Ne6 {[%clk 0:00:21]}  Bf2+ {[%clk 0:00:13]} 20. Kxf2 {[%clk 0:00:19]}  Rxa1 {[%clk 0:00:14]} 21. Nxg7+ {[%clk 0:00:19]}  Ke7 {[%clk 0:00:13]} 22. Bg5+ {[%clk 0:00:17]}  Nxg5 {[%clk 0:00:12]} 23. Rxa1 {[%clk 0:00:13]}  Nh7 {[%clk 0:00:11]} 24. Ra6 {[%clk 0:00:06]}  d5 {[%clk 0:00:10]} 25. Qa2 {[%clk 0:00:07]}  Rc8 {[%clk 0:00:10]} 26. Ne6 {[%clk 0:00:06]}  Kf6 {[%clk 0:00:07]} 27. Ra7 {[%clk 0:00:06]}  Qd6 {[%clk 0:00:06]} 28. Rxh7 {[%clk 0:00:07]}  dxe4 {[%clk 0:00:06]} 29. Rh6+ {[%clk 0:00:07]}  Ke7 {[%clk 0:00:05]} 30. dxe4 {[%clk 0:00:05]}  Rc7 {[%clk 0:00:03]} 31. Rh7+ {[%clk 0:00:06]}  Kf6 {[%clk 0:00:02]} 32. Rxc7 {[%clk 0:00:06]}  Qd1 {[%clk 0:00:02]} 33. Rh7 {[%clk 0:00:04]}  Qd3 {[%clk 0:00:00]} 34. Rh6+ {[%clk 0:00:04]} 1-0


[Site "https://www.chess.com"]

[Event "Titled Tuesday Blitz June 27 Late 2023"]
[White "Inepton_Fermion"]
[Black "Jovic, Stanoje"]
[BlackFideId "905020"]
[WhiteElo "2370"]
[BlackElo "2507"]
[Result "0-1"]
[Round "6"]
[TimeControl "180+2"]
[Date "2023.06.27"]
[WhiteClock "0:00:00"]
[BlackClock "0:00:21"]
[Board "103"]

1. d4 {[%clk 0:03:00]}  Nf6 {[%clk 0:02:59]} 2. Bg5 {[%clk 0:03:00]}  c5 {[%clk 0:02:58]} 3. d5 {[%clk 0:02:49]}  Qb6 {[%clk 0:02:58]} 4. Nc3 {[%clk 0:02:42]}  Qxb2 {[%clk 0:02:57]} 5. Bd2 {[%clk 0:02:42]}  Qb6 {[%clk 0:02:56]} 6. Rb1 {[%clk 0:02:38]}  Qc7 {[%clk 0:02:55]} 7. e4 {[%clk 0:02:39]}  e5 {[%clk 0:02:55]} 8. f4 {[%clk 0:02:16]}  d6 {[%clk 0:02:54]} 9. fxe5 {[%clk 0:02:14]}  dxe5 {[%clk 0:02:53]} 10. Nf3 {[%clk 0:02:14]}  Bg4 {[%clk 0:02:53]} 11. Nb5 {[%clk 0:01:44]}  Qc8 {[%clk 0:02:42]} 12. d6 {[%clk 0:01:26]}  Na6 {[%clk 0:02:41]} 13. Bg5 {[%clk 0:01:27]}  Nxe4 {[%clk 0:02:34]} 14. Qd5 {[%clk 0:01:15]}  Bxf3 {[%clk 0:02:12]} 15. Bc4 {[%clk 0:00:12]}  Nxg5 {[%clk 0:01:48]} 16. Qxe5+ {[%clk 0:00:12]}  Ne6 {[%clk 0:01:39]} 17. gxf3 {[%clk 0:00:13]}  Qc6 {[%clk 0:01:26]} 18. Kf2 {[%clk 0:00:11]}  O-O-O {[%clk 0:01:08]} 19. Nxa7+ {[%clk 0:00:11]}  Kd7 {[%clk 0:01:01]} 20. Nxc6 {[%clk 0:00:11]}  Bxd6 {[%clk 0:00:54]} 21. Rhd1 {[%clk 0:00:07]}  Kxc6 {[%clk 0:00:53]} 22. Rxd6+ {[%clk 0:00:06]}  Rxd6 {[%clk 0:00:51]} 23. Bxa6 {[%clk 0:00:05]}  bxa6 {[%clk 0:00:45]} 24. Qe4+ {[%clk 0:00:04]}  Kd7 {[%clk 0:00:44]} 25. Rb7+ {[%clk 0:00:04]}  Nc7 {[%clk 0:00:44]} 26. Qf5+ {[%clk 0:00:03]}  Kc6 {[%clk 0:00:43]} 27. Qe4+ {[%clk 0:00:01]}  Kd7 {[%clk 0:00:42]} 28. Ra7 {[%clk 0:00:01]}  g6 {[%clk 0:00:39]} 29. Qg4+ {[%clk 0:00:01]}  f5 {[%clk 0:00:38]} 30. Qa4+ {[%clk 0:00:02]}  Rc6 {[%clk 0:00:36]} 31. Rb7 {[%clk 0:00:01]}  Re8 {[%clk 0:00:36]} 32. c4 {[%clk 0:00:01]}  Re6 {[%clk 0:00:35]} 33. Rb6 {[%clk 0:00:02]}  Rd6 {[%clk 0:00:34]} 34. Kg3 {[%clk 0:00:02]}  Ne6 {[%clk 0:00:33]} 35. Rxa6 {[%clk 0:00:02]}  Nd4 {[%clk 0:00:32]} 36. Rxc6 {[%clk 0:00:01]}  Rxc6 {[%clk 0:00:32]} 37. Qa7+ {[%clk 0:00:02]}  Ke6 {[%clk 0:00:31]} 38. Qxh7 {[%clk 0:00:02]}  f4+ {[%clk 0:00:32]} 39. Kg4 {[%clk 0:00:02]}  Kf6 {[%clk 0:00:31]} 40. Qh8+ {[%clk 0:00:02]}  Kf7 {[%clk 0:00:31]} 41. Qe5 {[%clk 0:00:02]}  Ne6 {[%clk 0:00:27]} 42. Qd5 {[%clk 0:00:02]}  Ra6 {[%clk 0:00:25]} 43. Qd2 {[%clk 0:00:03]}  Ra3 {[%clk 0:00:24]} 44. h4 {[%clk 0:00:03]}  Re3 {[%clk 0:00:24]} 45. Qd7+ {[%clk 0:00:02]}  Kf6 {[%clk 0:00:24]} 46. Qd6 {[%clk 0:00:02]}  Ra3 {[%clk 0:00:23]} 47. h5 {[%clk 0:00:03]}  gxh5+ {[%clk 0:00:22]} 48. Kxh5 {[%clk 0:00:03]}  Rxa2 {[%clk 0:00:23]} 49. Qd5 {[%clk 0:00:02]}  Rh2+ {[%clk 0:00:23]} 50. Kg4 {[%clk 0:00:03]}  Rg2+ {[%clk 0:00:23]} 51. Kh3 {[%clk 0:00:03]}  Rg5 {[%clk 0:00:23]} 52. Qd6 {[%clk 0:00:03]}  Rg3+ {[%clk 0:00:23]} 53. Kh2 {[%clk 0:00:03]}  Rxf3 {[%clk 0:00:23]} 54. Qd5 {[%clk 0:00:03]}  Re3 {[%clk 0:00:23]} 55. Kg2 {[%clk 0:00:04]}  Re5 {[%clk 0:00:23]} 56. Qd7 {[%clk 0:00:03]}  Kf5 {[%clk 0:00:23]} 57. Kf2 {[%clk 0:00:03]}  Re4 {[%clk 0:00:21]} 58. Qf7+ {[%clk 0:00:03]}  Ke5 {[%clk 0:00:21]} 59. Qd7 {[%clk 0:00:03]}  Rxc4 {[%clk 0:00:20]} 60. Qe8 {[%clk 0:00:02]}  Rc2+ {[%clk 0:00:20]} 61. Ke1 {[%clk 0:00:02]}  Rc4 {[%clk 0:00:19]} 62. Ke2 {[%clk 0:00:02]}  Re4+ {[%clk 0:00:20]} 63. Kd3 {[%clk 0:00:02]}  c4+ {[%clk 0:00:20]} 64. Kc3 {[%clk 0:00:02]}  f3 {[%clk 0:00:20]} 65. Qh8+ {[%clk 0:00:02]}  Kd5 {[%clk 0:00:20]} 66. Qa8+ {[%clk 0:00:02]}  Ke5 {[%clk 0:00:20]} 67. Qh8+ {[%clk 0:00:02]}  Kf4 {[%clk 0:00:20]} 68. Qf6+ {[%clk 0:00:02]}  Ke3 {[%clk 0:00:21]} 69. Qh6+ {[%clk 0:00:00]}  Ke2 {[%clk 0:00:21]} 0-1


[Site "https://www.chess.com"]

[Event "Titled Tuesday Blitz June 27 Late 2023"]
[White "Womacka, Mathias"]
[Black "Castella Garcia, Fausto"]
[WhiteFideId "4611390"]
[BlackFideId "3501922"]
[WhiteElo "2501"]
[BlackElo "2363"]
[Result "1/2-1/2"]
[Round "6"]
[TimeControl "180+2"]
[Date "2023.06.27"]
[WhiteClock "0:00:07"]
[BlackClock "0:00:06"]
[Board "104"]

1. e4 {[%clk 0:03:00]}  c5 {[%clk 0:02:59]} 2. Nf3 {[%clk 0:03:00]}  d6 {[%clk 0:03:00]} 3. d4 {[%clk 0:03:00]}  cxd4 {[%clk 0:03:00]} 4. Nxd4 {[%clk 0:03:00]}  Nf6 {[%clk 0:03:01]} 5. Nc3 {[%clk 0:03:00]}  g6 {[%clk 0:03:02]} 6. Be3 {[%clk 0:02:59]}  Bg7 {[%clk 0:03:02]} 7. f3 {[%clk 0:02:58]}  O-O {[%clk 0:03:02]} 8. Qd2 {[%clk 0:02:59]}  Nc6 {[%clk 0:03:03]} 9. O-O-O {[%clk 0:02:59]}  d5 {[%clk 0:03:00]} 10. exd5 {[%clk 0:02:59]}  Nxd5 {[%clk 0:03:01]} 11. Nxc6 {[%clk 0:02:59]}  bxc6 {[%clk 0:03:01]} 12. Bd4 {[%clk 0:03:00]}  Bxd4 {[%clk 0:03:01]} 13. Qxd4 {[%clk 0:02:59]}  Qb6 {[%clk 0:02:59]} 14. Na4 {[%clk 0:02:58]}  Qa5 {[%clk 0:02:59]} 15. b3 {[%clk 0:02:58]}  Bf5 {[%clk 0:02:58]} 16. g4 {[%clk 0:02:39]}  Bxc2 {[%clk 0:02:54]} 17. Kxc2 {[%clk 0:02:37]}  Nb4+ {[%clk 0:02:53]} 18. Kc1 {[%clk 0:02:20]}  Nxa2+ {[%clk 0:02:44]} 19. Kb2 {[%clk 0:02:19]}  Rad8 {[%clk 0:02:38]} 20. Kxa2 {[%clk 0:02:15]}  Rxd4 {[%clk 0:02:37]} 21. Rxd4 {[%clk 0:02:16]}  Qe1 {[%clk 0:02:28]} 22. Nb2 {[%clk 0:02:04]}  Rb8 {[%clk 0:02:12]} 23. h4 {[%clk 0:01:02]}  Kg7 {[%clk 0:01:28]} 24. h5 {[%clk 0:01:00]}  e5 {[%clk 0:01:26]} 25. Rd7 {[%clk 0:00:51]}  Qf2 {[%clk 0:01:06]} 26. Bc4 {[%clk 0:00:45]}  Rf8 {[%clk 0:00:57]} 27. Rf1 {[%clk 0:00:41]}  Qb6 {[%clk 0:00:51]} 28. hxg6 {[%clk 0:00:37]}  hxg6 {[%clk 0:00:51]} 29. Na4 {[%clk 0:00:29]}  Qe3 {[%clk 0:00:44]} 30. Kb2 {[%clk 0:00:19]}  a5 {[%clk 0:00:38]} 31. Nc3 {[%clk 0:00:18]}  g5 {[%clk 0:00:30]} 32. Rfd1 {[%clk 0:00:15]}  Kg6 {[%clk 0:00:28]} 33. Bd3+ {[%clk 0:00:14]}  Kg7 {[%clk 0:00:25]} 34. Be4 {[%clk 0:00:14]}  a4 {[%clk 0:00:24]} 35. Nxa4 {[%clk 0:00:13]}  Rb8 {[%clk 0:00:20]} 36. Nc3 {[%clk 0:00:12]}  Qb6 {[%clk 0:00:19]} 37. Bc2 {[%clk 0:00:11]}  Ra8 {[%clk 0:00:15]} 38. Ne4 {[%clk 0:00:10]}  Qa5 {[%clk 0:00:15]} 39. Nxg5 {[%clk 0:00:09]}  Qa3+ {[%clk 0:00:14]} 40. Kc3 {[%clk 0:00:08]}  Qc5+ {[%clk 0:00:14]} 41. Kb2 {[%clk 0:00:07]}  Qa3+ {[%clk 0:00:12]} 42. Kc3 {[%clk 0:00:07]}  Qc5+ {[%clk 0:00:08]} 43. Kb2 {[%clk 0:00:07]}  Qa3+ {[%clk 0:00:06]} 1/2-1/2


[Site "https://www.chess.com"]

[Event "Titled Tuesday Blitz June 27 Late 2023"]
[White "Uzcategui Rodriguez, Alejandro"]
[Black "Muhammed, Shuaau"]
[WhiteFideId "3903400"]
[BlackFideId "16700406"]
[WhiteElo "2488"]
[BlackElo "2352"]
[Result "0-1"]
[Round "6"]
[TimeControl "180+2"]
[Date "2023.06.27"]
[WhiteClock "0:00:13"]
[BlackClock "0:00:49"]
[Board "106"]

1. d4 {[%clk 0:03:00]}  Nf6 {[%clk 0:02:58]} 2. Nf3 {[%clk 0:03:00]}  d5 {[%clk 0:02:57]} 3. Bg5 {[%clk 0:03:00]}  e6 {[%clk 0:02:57]} 4. e3 {[%clk 0:03:00]}  Be7 {[%clk 0:02:57]} 5. Nbd2 {[%clk 0:03:00]}  h6 {[%clk 0:02:57]} 6. Bh4 {[%clk 0:03:00]}  Nbd7 {[%clk 0:02:57]} 7. Bd3 {[%clk 0:02:59]}  O-O {[%clk 0:02:56]} 8. Qe2 {[%clk 0:02:57]}  c5 {[%clk 0:02:56]} 9. c3 {[%clk 0:02:57]}  a6 {[%clk 0:02:56]} 10. Ne5 {[%clk 0:02:52]}  Nxe5 {[%clk 0:02:52]} 11. dxe5 {[%clk 0:02:53]}  Nd7 {[%clk 0:02:52]} 12. Bxe7 {[%clk 0:02:53]}  Qxe7 {[%clk 0:02:51]} 13. f4 {[%clk 0:02:54]}  f6 {[%clk 0:02:49]} 14. Qh5 {[%clk 0:02:53]}  fxe5 {[%clk 0:02:44]} 15. fxe5 {[%clk 0:02:53]}  Qg5 {[%clk 0:02:38]} 16. Qxg5 {[%clk 0:02:49]}  hxg5 {[%clk 0:02:38]} 17. O-O-O {[%clk 0:02:23]}  Nxe5 {[%clk 0:02:38]} 18. Bc2 {[%clk 0:02:23]}  Ng4 {[%clk 0:02:36]} 19. Rde1 {[%clk 0:02:23]}  e5 {[%clk 0:02:23]} 20. e4 {[%clk 0:02:20]}  d4 {[%clk 0:02:19]} 21. Nc4 {[%clk 0:02:15]}  Be6 {[%clk 0:02:16]} 22. Nb6 {[%clk 0:02:12]}  Rad8 {[%clk 0:02:13]} 23. Nd5 {[%clk 0:01:31]}  Bxd5 {[%clk 0:02:03]} 24. exd5 {[%clk 0:01:32]}  c4 {[%clk 0:01:59]} 25. Be4 {[%clk 0:01:26]}  Nf2 {[%clk 0:01:44]} 26. Rhf1 {[%clk 0:01:23]}  Nxe4 {[%clk 0:01:38]} 27. Rxf8+ {[%clk 0:01:22]}  Kxf8 {[%clk 0:01:37]} 28. Rxe4 {[%clk 0:01:23]}  Rxd5 {[%clk 0:01:38]} 29. Rg4 {[%clk 0:01:20]}  d3 {[%clk 0:01:36]} 30. Rxc4 {[%clk 0:01:15]}  Kf7 {[%clk 0:01:31]} 31. Rc7+ {[%clk 0:01:13]}  Kf6 {[%clk 0:01:32]} 32. Kd2 {[%clk 0:01:12]}  e4 {[%clk 0:01:32]} 33. c4 {[%clk 0:00:26]}  Rf5 {[%clk 0:01:20]} 34. Ke3 {[%clk 0:00:20]}  Rf1 {[%clk 0:01:20]} 35. Rd7 {[%clk 0:00:18]}  Re1+ {[%clk 0:01:20]} 36. Kf2 {[%clk 0:00:18]}  Re2+ {[%clk 0:01:20]} 37. Kg3 {[%clk 0:00:18]}  Rxb2 {[%clk 0:01:17]} 38. a4 {[%clk 0:00:18]}  Ke5 {[%clk 0:01:11]} 39. h4 {[%clk 0:00:16]}  gxh4+ {[%clk 0:01:11]} 40. Kxh4 {[%clk 0:00:17]}  Rxg2 {[%clk 0:01:11]} 41. c5 {[%clk 0:00:17]}  d2 {[%clk 0:01:09]} 42. a5 {[%clk 0:00:15]}  e3 {[%clk 0:01:08]} 43. Re7+ {[%clk 0:00:16]}  Kd4 {[%clk 0:01:08]} 44. Rd7+ {[%clk 0:00:16]}  Kxc5 {[%clk 0:01:07]} 45. Rc7+ {[%clk 0:00:16]}  Kb4 {[%clk 0:01:04]} 46. Rxb7+ {[%clk 0:00:16]}  Kxa5 {[%clk 0:01:05]} 47. Rb2 {[%clk 0:00:13]}  Rg1 {[%clk 0:01:04]} 48. Ra2+ {[%clk 0:00:12]}  Kb4 {[%clk 0:01:04]} 49. Rb2+ {[%clk 0:00:13]}  Kc3 {[%clk 0:01:04]} 50. Rb8 {[%clk 0:00:14]}  d1=Q {[%clk 0:01:04]} 51. Rc8+ {[%clk 0:00:15]}  Kd2 {[%clk 0:01:05]} 52. Rd8+ {[%clk 0:00:15]}  Ke2 {[%clk 0:01:05]} 53. Rf8 {[%clk 0:00:13]}  Qe1+ {[%clk 0:01:04]} 54. Kh5 {[%clk 0:00:13]}  Qa5+ {[%clk 0:01:01]} 55. Kh4 {[%clk 0:00:12]}  Qg5+ {[%clk 0:00:59]} 56. Kh3 {[%clk 0:00:13]}  Qh5# {[%clk 0:00:49]} 0-1


[Site "https://www.chess.com"]